[Event "*** Titled Tuesday Blitz"]
[Site "Chess.com"]
[Date "2021.03.16"]
[Round "7"]
[White "chesslh19"]
[Black "PawnEatingZombie"]
[Result "1-0"]
[WhiteElo "2255"]
[BlackElo "2176"]
[TimeControl "180+1"]
[EndTime "11:18:44 PDT"]
[Termination "chesslh19 won by resignation"]

1. e4 {[%clk 0:03:00.9]} 1... c6 {[%clk 0:02:59.7]} 2. d4 {[%clk 0:02:57.6]}
2... d5 {[%clk 0:03:00.6]} 3. Nd2 {[%clk 0:02:57.9]} 3... dxe4 {[%clk
0:03:00.4]} 4. Nxe4 {[%clk 0:02:58.8]} 4... Bf5 {[%clk 0:03:00.6]} 5. Ng3 {[%clk
0:02:58.9]} 5... Bg6 {[%clk 0:03:01.2]} 6. h4 {[%clk 0:02:59.5]} 6... h6 {[%clk
0:03:01.6]} 7. Nf3 {[%clk 0:02:59.8]} 7... Nd7 {[%clk 0:03:02]} 8. h5 {[%clk
0:03:00.4]} 8... Bh7 {[%clk 0:03:02.3]} 9. Bd3 {[%clk 0:03:01.1]} 9... Bxd3
{[%clk 0:03:02.8]} 10. Qxd3 {[%clk 0:03:02]} 10... e6 {[%clk 0:03:03.2]} 11. Bd2
{[%clk 0:03:02.6]} 11... Ngf6 {[%clk 0:03:02.7]} 12. O-O-O {[%clk 0:03:03.2]}
12... Be7 {[%clk 0:03:02.5]} 13. Ne4 {[%clk 0:03:03.8]} 13... Qb6 {[%clk
0:03:01.6]} 14. c4 {[%clk 0:02:47.5]} 14... Rd8 {[%clk 0:02:58]} 15. Nxf6+
{[%clk 0:02:37.2]} 15... Bxf6 {[%clk 0:02:53.3]} 16. Bc3 {[%clk 0:02:24.1]}
16... O-O {[%clk 0:02:44.9]} 17. g4 {[%clk 0:02:16.2]} 17... Qa6 {[%clk
0:02:12.8]} 18. Kb1 {[%clk 0:02:13.6]} 18... Nc5 {[%clk 0:02:00.7]} 19. Qc2
{[%clk 0:02:00.6]} 19... Na4 {[%clk 0:02:00.1]} 20. Bb4 {[%clk 0:01:49.2]} 20...
Rfe8 {[%clk 0:01:47.3]} 21. b3 {[%clk 0:01:48.8]} 21... Nb6 {[%clk 0:01:15.4]}
22. Bc3 {[%clk 0:01:48.3]} 22... Nd7 {[%clk 0:01:11.9]} 23. Rhg1 {[%clk
0:01:24.8]} 23... b5 {[%clk 0:01:11]} 24. c5 {[%clk 0:01:05.4]} 24... Nf8 {[%clk
0:00:54.5]} 25. g5 {[%clk 0:01:04.4]} 25... hxg5 {[%clk 0:00:55.4]} 26. Nxg5
{[%clk 0:01:04.7]} 26... Bxg5 {[%clk 0:00:55.7]} 27. Rxg5 {[%clk 0:01:04.1]}
27... Rd5 {[%clk 0:00:52.8]} 28. Rdg1 {[%clk 0:01:01.4]} 28... Rxg5 {[%clk
0:00:52.2]} 29. Rxg5 {[%clk 0:01:01.6]} 29... Nh7 {[%clk 0:00:49.3]} 30. Rg1
{[%clk 0:00:57.3]} 30... Qb7 {[%clk 0:00:29.8]} 31. d5 {[%clk 0:00:54.6]} 31...
e5 {[%clk 0:00:30]} 32. d6 {[%clk 0:00:37.6]} 32... Qd7 {[%clk 0:00:29.5]} 33.
h6 {[%clk 0:00:32.9]} 33... g6 {[%clk 0:00:29]} 34. Re1 {[%clk 0:00:13.8]} 34...
Qg4 {[%clk 0:00:22.3]} 35. Bxe5 {[%clk 0:00:08.8]} 35... f6 {[%clk 0:00:18.9]}
36. Bc3 {[%clk 0:00:08.2]} 36... Rxe1+ {[%clk 0:00:18.8]} 37. Bxe1 {[%clk
0:00:09.1]} 37... Qe6 {[%clk 0:00:17.5]} 38. Bc3 {[%clk 0:00:05.9]} 38... f5
{[%clk 0:00:16.2]} 39. Bb2 {[%clk 0:00:05.2]} 39... Nf6 {[%clk 0:00:15.9]} 40.
Bc1 {[%clk 0:00:04.2]} 40... Qe4 {[%clk 0:00:15.1]} 41. Qxe4 {[%clk 0:00:03]}
41... Nxe4 {[%clk 0:00:16]} 42. Be3 {[%clk 0:00:03]} 42... Nf6 {[%clk
0:00:15.5]} 43. Kc2 {[%clk 0:00:03.1]} 43... Nd7 {[%clk 0:00:16.1]} 44. Kd3
{[%clk 0:00:03.3]} 44... Kf7 {[%clk 0:00:16.2]} 45. Bf4 {[%clk 0:00:02.9]} 45...
a5 {[%clk 0:00:15.9]} 46. Ke3 {[%clk 0:00:02.9]} 46... Kf6 {[%clk 0:00:14.9]}
47. a4 {[%clk 0:00:03.1]} 47... b4 {[%clk 0:00:12.1]} 48. Kd3 {[%clk 0:00:03.1]}
48... g5 {[%clk 0:00:12.2]} 49. Bd2 {[%clk 0:00:03.2]} 49... Ne5+ {[%clk
0:00:05.9]} 50. Kd4 {[%clk 0:00:02.9]} 50... Nd7 {[%clk 0:00:05.4]} 51. Kc4
{[%clk 0:00:03]} 51... Kg6 {[%clk 0:00:03.1]} 52. Bxb4 {[%clk 0:00:02.4]} 52...
axb4 {[%clk 0:00:02.2]} 53. Kxb4 {[%clk 0:00:03.3]} 53... Kxh6 {[%clk
0:00:02.4]} 54. a5 {[%clk 0:00:03.8]} 54... Nb8 {[%clk 0:00:02.4]} 55. Kc4
{[%clk 0:00:04]} 55... Kg6 {[%clk 0:00:01.5]} 56. b4 {[%clk 0:00:04.3]} 56...
Kf6 {[%clk 0:00:02]} 57. b5 {[%clk 0:00:04.7]} 57... cxb5+ {[%clk 0:00:02.4]}
58. Kxb5 {[%clk 0:00:05.6]} 58... g4 {[%clk 0:00:01.9]} 59. c6 {[%clk
0:00:05.8]} 59... f4 {[%clk 0:00:02.2]} 60. c7 {[%clk 0:00:06.2]} 60... Nd7
{[%clk 0:00:02.5]} 61. c8=Q {[%clk 0:00:06.4]} 61... g3 {[%clk 0:00:03.4]} 62.
Qxd7 {[%clk 0:00:06.5]} 62... gxf2 {[%clk 0:00:03.4]} 63. Qe7+ {[%clk
0:00:07.1]} 63... Kf5 {[%clk 0:00:03.5]} 64. Qe2 {[%clk 0:00:07.6]} 1-0

[Event "*** Titled Tuesday Blitz"]
[Site "Chess.com"]
[Date "2021.03.16"]
[Round "7"]
[White "GMRafpig"]
[Black "HackingKid98"]
[Result "1-0"]
[WhiteElo "2637"]
[BlackElo "2449"]
[TimeControl "180+1"]
[EndTime "11:18:47 PDT"]
[Termination "GMRafpig won on time"]

1. c4 {[%clk 0:03:00.9]} 1... c6 {[%clk 0:02:54.7]} 2. d4 {[%clk 0:02:54.1]}
2... d5 {[%clk 0:02:54.3]} 3. Nf3 {[%clk 0:02:52.8]} 3... e6 {[%clk 0:02:53.7]}
4. e3 {[%clk 0:02:51.8]} 4... Nf6 {[%clk 0:02:52.3]} 5. Nc3 {[%clk 0:02:51.7]}
5... Nbd7 {[%clk 0:02:51.3]} 6. Qc2 {[%clk 0:02:51.9]} 6... Bd6 {[%clk 0:02:50]}
7. b3 {[%clk 0:02:49.5]} 7... O-O {[%clk 0:02:49.1]} 8. Be2 {[%clk 0:02:49.8]}
8... b6 {[%clk 0:02:49.2]} 9. O-O {[%clk 0:02:48.7]} 9... Bb7 {[%clk 0:02:49.2]}
10. Bb2 {[%clk 0:02:48.5]} 10... Qe7 {[%clk 0:02:49.2]} 11. Rad1 {[%clk
0:02:47.8]} 11... Rad8 {[%clk 0:02:48.7]} 12. Rfe1 {[%clk 0:02:45.9]} 12... Rfe8
{[%clk 0:02:48.9]} 13. g3 {[%clk 0:02:42.9]} 13... c5 {[%clk 0:02:41]} 14. cxd5
{[%clk 0:02:39.7]} 14... exd5 {[%clk 0:02:34.2]} 15. Bf1 {[%clk 0:02:38.1]}
15... Rc8 {[%clk 0:02:21.7]} 16. Qb1 {[%clk 0:02:27.4]} 16... a6 {[%clk
0:01:23.6]} 17. Bg2 {[%clk 0:01:41.4]} 17... c4 {[%clk 0:01:20.7]} 18. bxc4
{[%clk 0:01:39.6]} 18... Rxc4 {[%clk 0:01:19.4]} 19. Nd2 {[%clk 0:01:39.1]}
19... Rcc8 {[%clk 0:01:12.1]} 20. e4 {[%clk 0:01:37.3]} 20... dxe4 {[%clk
0:01:10.7]} 21. Ndxe4 {[%clk 0:01:36.4]} 21... Bxe4 {[%clk 0:00:56.7]} 22. Nxe4
{[%clk 0:01:31.7]} 22... Nxe4 {[%clk 0:00:31.7]} 23. Rxe4 {[%clk 0:01:31.3]}
23... Qf8 {[%clk 0:00:22.1]} 24. Bh3 {[%clk 0:01:11]} 24... Rcd8 {[%clk
0:00:18.8]} 25. Rxe8 {[%clk 0:01:02.9]} 25... Qxe8 {[%clk 0:00:17.6]} 26. Re1
{[%clk 0:01:03]} 26... Qf8 {[%clk 0:00:17.2]} 27. Qe4 {[%clk 0:01:00]} 27... Nf6
{[%clk 0:00:16.5]} 28. Qc6 {[%clk 0:00:58.5]} 28... Bb4 {[%clk 0:00:15.1]} 29.
Re5 {[%clk 0:00:54.8]} 29... Ba5 {[%clk 0:00:14.8]} 30. d5 {[%clk 0:00:49.9]}
30... Qd6 {[%clk 0:00:13.4]} 31. Bg2 {[%clk 0:00:44.3]} 31... h6 {[%clk
0:00:12.7]} 32. Qxd6 {[%clk 0:00:39.5]} 32... Rxd6 {[%clk 0:00:12.1]} 33. Ba3
{[%clk 0:00:39.6]} 33... Rd8 {[%clk 0:00:10.8]} 34. Bf3 {[%clk 0:00:35.4]} 34...
b5 {[%clk 0:00:10.2]} 35. Be7 {[%clk 0:00:34.4]} 35... Rd7 {[%clk 0:00:08.9]}
36. d6 {[%clk 0:00:31.3]} 36... Bb4 {[%clk 0:00:08]} 37. Bc6 {[%clk 0:00:16.8]}
37... Bxd6 {[%clk 0:00:05.9]} 38. Bxd6 {[%clk 0:00:16.9]} 38... Rxd6 {[%clk
0:00:05.5]} 39. Bf3 {[%clk 0:00:17]} 39... g6 {[%clk 0:00:05.3]} 40. h3 {[%clk
0:00:17.2]} 40... Kg7 {[%clk 0:00:05.4]} 41. Kg2 {[%clk 0:00:17.8]} 41... h5
{[%clk 0:00:05.5]} 42. Rc5 {[%clk 0:00:18.1]} 42... Rd4 {[%clk 0:00:05.2]} 43.
h4 {[%clk 0:00:17.6]} 43... Ra4 {[%clk 0:00:05.1]} 44. Rc2 {[%clk 0:00:17.8]}
44... Ra3 {[%clk 0:00:05]} 45. Bd1 {[%clk 0:00:18]} 45... b4 {[%clk 0:00:04.8]}
46. Rd2 {[%clk 0:00:18.1]} 46... a5 {[%clk 0:00:04.5]} 47. Bb3 {[%clk
0:00:18.3]} 47... a4 {[%clk 0:00:03.6]} 48. Bc4 {[%clk 0:00:18.9]} 48... b3
{[%clk 0:00:03.4]} 49. axb3 {[%clk 0:00:18.4]} 49... axb3 {[%clk 0:00:04.3]} 50.
Rb2 {[%clk 0:00:17.6]} 50... Ne4 {[%clk 0:00:03.9]} 51. Bxb3 {[%clk 0:00:15.4]}
51... Nc5 {[%clk 0:00:03.9]} 52. Bd5 {[%clk 0:00:15.1]} 52... Kf6 {[%clk
0:00:01.9]} 53. Rb5 {[%clk 0:00:15]} 53... Nd3 {[%clk 0:00:01.9]} 54. Rb6+
{[%clk 0:00:15.2]} 54... Ke5 {[%clk 0:00:01]} 55. Bxf7 {[%clk 0:00:14.7]} 55...
Kd4 {[%clk 0:00:01.2]} 56. Bxg6 {[%clk 0:00:13.8]} 56... Ne5 {[%clk 0:00:02.1]}
57. Bxh5 {[%clk 0:00:13.2]} 57... Ra2 {[%clk 0:00:02.2]} 58. Rd6+ {[%clk
0:00:13.4]} 58... Kc5 {[%clk 0:00:02.1]} 59. Rd1 {[%clk 0:00:13.2]} 59... Nc4
{[%clk 0:00:01.8]} 60. Bf3 {[%clk 0:00:13.1]} 1-0

[Event "*** Titled Tuesday Blitz"]
[Site "Chess.com"]
[Date "2021.03.16"]
[Round "7"]
[White "Natalya_Buksa"]
[Black "Abund"]
[Result "0-1"]
[WhiteElo "2499"]
[BlackElo "2696"]
[TimeControl "180+1"]
[EndTime "11:18:48 PDT"]
[Termination "Abund won by resignation"]

1. d4 {[%clk 0:02:54.2]} 1... Nf6 {[%clk 0:02:59.7]} 2. Nc3 {[%clk 0:02:53.9]}
2... d5 {[%clk 0:02:59.2]} 3. Bf4 {[%clk 0:02:53.9]} 3... g6 {[%clk 0:02:58.5]}
4. e3 {[%clk 0:02:53.9]} 4... Bg7 {[%clk 0:02:58.3]} 5. h4 {[%clk 0:02:54.3]}
5... h5 {[%clk 0:02:58.3]} 6. Nf3 {[%clk 0:02:53.6]} 6... O-O {[%clk 0:02:56.1]}
7. Be2 {[%clk 0:02:50]} 7... c5 {[%clk 0:02:55.5]} 8. Qd2 {[%clk 0:02:49.9]}
8... Nc6 {[%clk 0:02:41.3]} 9. Ne5 {[%clk 0:02:49]} 9... a6 {[%clk 0:02:24.3]}
10. a3 {[%clk 0:02:32.4]} 10... cxd4 {[%clk 0:02:21]} 11. exd4 {[%clk
0:02:31.9]} 11... Qb6 {[%clk 0:02:16.9]} 12. O-O-O {[%clk 0:02:30.2]} 12... Bf5
{[%clk 0:02:06.6]} 13. f3 {[%clk 0:02:29.7]} 13... Rfc8 {[%clk 0:02:04.2]} 14.
g4 {[%clk 0:02:29.4]} 14... hxg4 {[%clk 0:02:02.7]} 15. fxg4 {[%clk 0:02:29.7]}
15... Ne4 {[%clk 0:02:01.5]} 16. Qe3 {[%clk 0:02:04.4]} 16... Nxc3 {[%clk
0:01:55.6]} 17. bxc3 {[%clk 0:02:04.3]} 17... Be4 {[%clk 0:01:55.7]} 18. Rh3
{[%clk 0:01:58.2]} 18... Nxe5 {[%clk 0:01:34.5]} 19. Bxe5 {[%clk 0:01:56.4]}
19... Bxe5 {[%clk 0:01:22]} 20. dxe5 {[%clk 0:01:57.3]} 20... Qxe3+ {[%clk
0:01:22.3]} 21. Rxe3 {[%clk 0:01:57.8]} 21... Rc5 {[%clk 0:01:16]} 22. Rd4
{[%clk 0:01:36.9]} 22... Rac8 {[%clk 0:01:11.9]} 23. Kb2 {[%clk 0:01:21.9]}
23... Kg7 {[%clk 0:00:59.6]} 24. Bf3 {[%clk 0:01:21.8]} 24... Bxf3 {[%clk
0:00:50.1]} 25. Rxf3 {[%clk 0:01:22.7]} 25... e6 {[%clk 0:00:43.3]} 26. Rdf4
{[%clk 0:01:13.5]} 26... R8c7 {[%clk 0:00:42.6]} 27. a4 {[%clk 0:00:57.1]} 27...
Rc4 {[%clk 0:00:41.9]} 28. Kb3 {[%clk 0:00:48.7]} 28... g5 {[%clk 0:00:30.2]}
29. hxg5 {[%clk 0:00:37.2]} 29... Rxf4 {[%clk 0:00:29.9]} 30. Rxf4 {[%clk
0:00:37]} 30... Kg6 {[%clk 0:00:30.5]} 31. a5 {[%clk 0:00:21.2]} 31... Kxg5
{[%clk 0:00:29]} 32. Rb4 {[%clk 0:00:21.2]} 32... f5 {[%clk 0:00:21.6]} 33. exf6
{[%clk 0:00:18.9]} 33... Kxf6 {[%clk 0:00:21.8]} 34. c4 {[%clk 0:00:07.8]} 34...
d4 {[%clk 0:00:19.3]} 35. c5 {[%clk 0:00:06.4]} 35... e5 {[%clk 0:00:18.4]} 36.
Kc4 {[%clk 0:00:06.7]} 36... Kg5 {[%clk 0:00:17.7]} 37. Kd5 {[%clk 0:00:07]}
37... Kf4 {[%clk 0:00:17.4]} 38. Kd6 {[%clk 0:00:07]} 38... Rc6+ {[%clk
0:00:15.3]} 39. Kd5 {[%clk 0:00:07.3]} 39... Rc7 {[%clk 0:00:13.8]} 40. Kd6
{[%clk 0:00:04.1]} 40... Rg7 {[%clk 0:00:13.3]} 41. Rb1 {[%clk 0:00:02.4]} 41...
e4 {[%clk 0:00:11.8]} 42. c6 {[%clk 0:00:01.8]} 42... bxc6 {[%clk 0:00:11.6]}
43. Kxc6 {[%clk 0:00:02.7]} 43... Ke3 {[%clk 0:00:11.3]} 44. Kb6 {[%clk
0:00:02.5]} 44... Kd2 {[%clk 0:00:10.9]} 45. Kxa6 {[%clk 0:00:02.3]} 45... Kxc2
{[%clk 0:00:10.8]} 46. Rb6 {[%clk 0:00:02.6]} 46... d3 {[%clk 0:00:10.4]} 47.
Kb5 {[%clk 0:00:03.2]} 47... d2 {[%clk 0:00:10.5]} 48. Rc6+ {[%clk 0:00:04.1]}
48... Kb2 {[%clk 0:00:10.4]} 49. Rd6 {[%clk 0:00:04.3]} 49... e3 {[%clk
0:00:10.6]} 50. a6 {[%clk 0:00:04.6]} 50... Kc2 {[%clk 0:00:10.8]} 51. Rc6+
{[%clk 0:00:04.4]} 51... Kd3 {[%clk 0:00:11.1]} 52. Rd6+ {[%clk 0:00:04.3]}
52... Ke4 {[%clk 0:00:11.5]} 53. Kb6 {[%clk 0:00:02.9]} 53... Rxg4 {[%clk
0:00:08.4]} 54. a7 {[%clk 0:00:02.4]} 54... Rg8 {[%clk 0:00:08.5]} 55. Re6+
{[%clk 0:00:02.7]} 55... Kd3 {[%clk 0:00:07.9]} 56. Rd6+ {[%clk 0:00:03.1]}
56... Ke2 {[%clk 0:00:08]} 57. Rg6 {[%clk 0:00:02]} 57... Rxg6+ {[%clk
0:00:07.5]} 0-1

[Event "*** Titled Tuesday Blitz"]
[Site "Chess.com"]
[Date "2021.03.16"]
[Round "7"]
[White "MITerryble"]
[Black "GregShahade"]
[Result "1-0"]
[WhiteElo "2911"]
[BlackElo "2772"]
[TimeControl "180+1"]
[EndTime "11:18:55 PDT"]
[Termination "MITerryble won by checkmate"]

1. e4 {[%clk 0:03:00.9]} 1... e5 {[%clk 0:02:59.2]} 2. Nf3 {[%clk 0:03:00.8]}
2... Nc6 {[%clk 0:02:59]} 3. c3 {[%clk 0:03:00.9]} 3... d5 {[%clk 0:02:57.6]} 4.
Qa4 {[%clk 0:03:00.3]} 4... f6 {[%clk 0:02:57.4]} 5. Bb5 {[%clk 0:02:59.3]} 5...
Ne7 {[%clk 0:02:55.6]} 6. exd5 {[%clk 0:02:55.1]} 6... Qxd5 {[%clk 0:02:56.5]}
7. d4 {[%clk 0:02:55]} 7... Bd7 {[%clk 0:02:52.3]} 8. O-O {[%clk 0:02:39]} 8...
e4 {[%clk 0:02:49.6]} 9. Nfd2 {[%clk 0:02:34.2]} 9... a6 {[%clk 0:02:43.1]} 10.
Bc4 {[%clk 0:02:34]} 10... Qh5 {[%clk 0:02:32.4]} 11. Qd1 {[%clk 0:02:25.8]}
11... Qxd1 {[%clk 0:02:26.9]} 12. Rxd1 {[%clk 0:02:26.7]} 12... f5 {[%clk
0:02:24]} 13. Nb3 {[%clk 0:02:26.6]} 13... Ng6 {[%clk 0:02:07.7]} 14. N1d2
{[%clk 0:02:14.5]} 14... O-O-O {[%clk 0:02:06.4]} 15. Nf1 {[%clk 0:02:12.5]}
15... Bd6 {[%clk 0:02:04.7]} 16. Ng3 {[%clk 0:02:07.8]} 16... Rde8 {[%clk
0:02:01.6]} 17. Re1 {[%clk 0:02:07.4]} 17... Rhf8 {[%clk 0:02:00.7]} 18. Nh5
{[%clk 0:02:05.9]} 18... f4 {[%clk 0:01:42.7]} 19. Nd2 {[%clk 0:01:28]} 19...
Bg4 {[%clk 0:01:27.3]} 20. Nxg7 {[%clk 0:01:27.6]} 20... Re7 {[%clk 0:01:27.3]}
21. h3 {[%clk 0:01:28.5]} 21... Bd7 {[%clk 0:00:46.3]} 22. Ne6 {[%clk
0:01:25.7]} 22... Bxe6 {[%clk 0:00:42.8]} 23. Bxe6+ {[%clk 0:01:24.6]} 23...
Rxe6 {[%clk 0:00:42.8]} 24. d5 {[%clk 0:01:25.5]} 24... Re7 {[%clk 0:00:37.3]}
25. dxc6 {[%clk 0:01:24.9]} 25... Rfe8 {[%clk 0:00:37.6]} 26. cxb7+ {[%clk
0:01:20.9]} 26... Kxb7 {[%clk 0:00:37.3]} 27. Nc4 {[%clk 0:01:21.8]} 27... Bc5
{[%clk 0:00:36.9]} 28. b4 {[%clk 0:01:16]} 28... Ba7 {[%clk 0:00:36.5]} 29. Na5+
{[%clk 0:01:13.4]} 29... Ka8 {[%clk 0:00:26.1]} 30. Nc6 {[%clk 0:01:13.6]} 30...
Rd7 {[%clk 0:00:26.2]} 31. a4 {[%clk 0:01:11.8]} 31... Rd3 {[%clk 0:00:24.2]}
32. c4 {[%clk 0:00:58.2]} 32... Re6 {[%clk 0:00:23.6]} 33. Nxa7 {[%clk
0:00:53.9]} 33... Kxa7 {[%clk 0:00:23.6]} 34. b5 {[%clk 0:00:51.1]} 34... e3
{[%clk 0:00:23]} 35. Ra3 {[%clk 0:00:38]} 35... Rxa3 {[%clk 0:00:20.4]} 36. Bxa3
{[%clk 0:00:37.5]} 36... Kb7 {[%clk 0:00:17.2]} 37. c5 {[%clk 0:00:31.4]} 37...
Re4 {[%clk 0:00:16]} 38. fxe3 {[%clk 0:00:26]} 38... fxe3 {[%clk 0:00:15.7]} 39.
Bc1 {[%clk 0:00:25.5]} 39... e2 {[%clk 0:00:14.9]} 40. Kf2 {[%clk 0:00:21.5]}
40... Ne5 {[%clk 0:00:15.4]} 41. Bd2 {[%clk 0:00:14.1]} 41... Nd3+ {[%clk
0:00:15.3]} 42. Kf3 {[%clk 0:00:14.4]} 42... Nxe1+ {[%clk 0:00:15.5]} 43. Kxe4
{[%clk 0:00:14.6]} 43... Nc2 {[%clk 0:00:15.1]} 44. g4 {[%clk 0:00:09.6]} 44...
e1=Q+ {[%clk 0:00:14.6]} 45. Bxe1 {[%clk 0:00:09.8]} 45... Nxe1 {[%clk
0:00:15.5]} 46. h4 {[%clk 0:00:09.6]} 46... Nc2 {[%clk 0:00:13.6]} 47. g5 {[%clk
0:00:08.9]} 47... axb5 {[%clk 0:00:12.8]} 48. axb5 {[%clk 0:00:09]} 48... c6
{[%clk 0:00:12.9]} 49. h5 {[%clk 0:00:06.6]} 49... Nb4 {[%clk 0:00:11.6]} 50. g6
{[%clk 0:00:04.8]} 50... hxg6 {[%clk 0:00:11.5]} 51. h6 {[%clk 0:00:05.2]} 51...
Nd5 {[%clk 0:00:11.8]} 52. Ke5 {[%clk 0:00:05.5]} 52... Ne7 {[%clk 0:00:07.7]}
53. h7 {[%clk 0:00:05.5]} 53... g5 {[%clk 0:00:08.4]} 54. Kf6 {[%clk 0:00:05]}
54... Nd5+ {[%clk 0:00:09.1]} 55. Kxg5 {[%clk 0:00:05]} 55... cxb5 {[%clk
0:00:09.3]} 56. h8=Q {[%clk 0:00:05.2]} 56... Kc6 {[%clk 0:00:10.2]} 57. Qf8
{[%clk 0:00:05.2]} 57... b4 {[%clk 0:00:09.9]} 58. Qd6+ {[%clk 0:00:05.4]} 58...
Kb5 {[%clk 0:00:10.7]} 59. Qxd5 {[%clk 0:00:06.3]} 59... Ka4 {[%clk 0:00:10.2]}
60. c6 {[%clk 0:00:06.3]} 60... b3 {[%clk 0:00:11.1]} 61. c7 {[%clk 0:00:06.3]}
61... b2 {[%clk 0:00:11.6]} 62. Qa2+ {[%clk 0:00:06.2]} 62... Kb5 {[%clk
0:00:11.7]} 63. Qxb2+ {[%clk 0:00:07.1]} 63... Ka6 {[%clk 0:00:11.8]} 64. c8=Q+
{[%clk 0:00:07.1]} 64... Ka5 {[%clk 0:00:12.7]} 65. Qa8# {[%clk 0:00:06.9]} 1-0

[Event "*** Titled Tuesday Blitz"]
[Site "Chess.com"]
[Date "2021.03.16"]
[Round "7"]
[White "zmeeed67"]
[Black "Ranindu2003"]
[Result "0-1"]
[WhiteElo "2420"]
[BlackElo "2590"]
[TimeControl "180+1"]
[EndTime "11:18:55 PDT"]
[Termination "Ranindu2003 won by checkmate"]

1. d4 {[%clk 0:03:00.9]} 1... Nf6 {[%clk 0:02:59.8]} 2. c4 {[%clk 0:03:01.1]}
2... g6 {[%clk 0:03:00.4]} 3. Nc3 {[%clk 0:03:01.2]} 3... d5 {[%clk 0:03:01.1]}
4. Bf4 {[%clk 0:03:01.4]} 4... Bg7 {[%clk 0:02:58.2]} 5. e3 {[%clk 0:03:01.7]}
5... c6 {[%clk 0:02:56.2]} 6. Nf3 {[%clk 0:03:01.2]} 6... O-O {[%clk 0:02:56.7]}
7. Bd3 {[%clk 0:03:01.2]} 7... Nbd7 {[%clk 0:02:51.6]} 8. cxd5 {[%clk
0:02:56.3]} 8... Nxd5 {[%clk 0:02:43.3]} 9. Nxd5 {[%clk 0:02:56.5]} 9... cxd5
{[%clk 0:02:44.2]} 10. O-O {[%clk 0:02:56.5]} 10... Kh8 {[%clk 0:02:44.2]} 11.
Qb3 {[%clk 0:02:45.4]} 11... Nb6 {[%clk 0:02:43.1]} 12. Rfc1 {[%clk 0:02:42.8]}
12... Bg4 {[%clk 0:02:12.6]} 13. Bc7 {[%clk 0:02:25.4]} 13... Qd7 {[%clk
0:02:10.6]} 14. Ne5 {[%clk 0:02:25.9]} 14... Bxe5 {[%clk 0:02:03.2]} 15. Bxe5+
{[%clk 0:02:26.8]} 15... f6 {[%clk 0:02:02.4]} 16. Rc7 {[%clk 0:02:27.4]} 16...
Qe6 {[%clk 0:01:15.4]} 17. Bg3 {[%clk 0:02:27.3]} 17... Rab8 {[%clk 0:01:16]}
18. h3 {[%clk 0:01:55]} 18... Bf5 {[%clk 0:01:05.7]} 19. Bxf5 {[%clk 0:01:55.2]}
19... gxf5 {[%clk 0:01:06.6]} 20. Rac1 {[%clk 0:01:54.7]} 20... Rg8 {[%clk
0:01:02.9]} 21. Qb4 {[%clk 0:01:22]} 21... Rbe8 {[%clk 0:00:59.1]} 22. b3 {[%clk
0:01:04.6]} 22... Rxg3 {[%clk 0:00:30.8]} 23. fxg3 {[%clk 0:01:05.5]} 23...
Qxe3+ {[%clk 0:00:31.1]} 24. Kh2 {[%clk 0:01:06.2]} 24... f4 {[%clk 0:00:20.3]}
25. gxf4 {[%clk 0:01:04.2]} 25... Qxf4+ {[%clk 0:00:21.2]} 26. Kh1 {[%clk
0:01:04.8]} 26... Nc4 {[%clk 0:00:21.3]} 27. R7xc4 {[%clk 0:00:57]} 27... dxc4
{[%clk 0:00:21.1]} 28. Qxc4 {[%clk 0:00:57.9]} 28... Rg8 {[%clk 0:00:19.5]} 29.
Re1 {[%clk 0:00:52.5]} 29... Qf2 {[%clk 0:00:16.4]} 30. Qf1 {[%clk 0:00:38.6]}
30... Qxd4 {[%clk 0:00:15.4]} 31. Rxe7 {[%clk 0:00:37]} 31... Rf8 {[%clk
0:00:14.8]} 32. Rxb7 {[%clk 0:00:28.7]} 32... f5 {[%clk 0:00:13.8]} 33. Rxa7
{[%clk 0:00:25.4]} 33... Qxa7 {[%clk 0:00:12.5]} 34. Qc4 {[%clk 0:00:24.9]}
34... Qg7 {[%clk 0:00:12.7]} 35. b4 {[%clk 0:00:23.9]} 35... f4 {[%clk
0:00:13.1]} 36. Qd3 {[%clk 0:00:23.3]} 36... f3 {[%clk 0:00:11.3]} 37. gxf3
{[%clk 0:00:24.2]} 37... Re8 {[%clk 0:00:11.7]} 38. Kh2 {[%clk 0:00:20.4]} 38...
Qe5+ {[%clk 0:00:11.1]} 39. Kg2 {[%clk 0:00:19.3]} 39... Qb2+ {[%clk 0:00:10.7]}
40. Kg3 {[%clk 0:00:19.2]} 40... Qxb4 {[%clk 0:00:11.3]} 41. Qd7 {[%clk
0:00:17]} 41... Rg8+ {[%clk 0:00:10.3]} 42. Kf2 {[%clk 0:00:17.3]} 42... Qb2+
{[%clk 0:00:10.5]} 43. Ke3 {[%clk 0:00:17.7]} 43... Qc3+ {[%clk 0:00:10.8]} 44.
Ke4 {[%clk 0:00:16.8]} 44... Qc4+ {[%clk 0:00:10.9]} 45. Ke3 {[%clk 0:00:16.9]}
45... Qc5+ {[%clk 0:00:10.7]} 46. Ke4 {[%clk 0:00:15.6]} 46... Rc8 {[%clk
0:00:10.1]} 47. Kf4 {[%clk 0:00:01.3]} 47... Qc7+ {[%clk 0:00:09.7]} 48. Qxc7
{[%clk 0:00:01.7]} 48... Rxc7 {[%clk 0:00:10.6]} 49. Ke5 {[%clk 0:00:02.6]}
49... Ra7 {[%clk 0:00:11.5]} 50. f4 {[%clk 0:00:03]} 50... Rxa2 {[%clk
0:00:12.1]} 51. f5 {[%clk 0:00:03.6]} 51... Kg8 {[%clk 0:00:12.6]} 52. Kf6
{[%clk 0:00:03.8]} 52... Kf8 {[%clk 0:00:13.5]} 53. h4 {[%clk 0:00:04.3]} 53...
Ra7 {[%clk 0:00:13.9]} 54. Kg5 {[%clk 0:00:04.7]} 54... Kg7 {[%clk 0:00:13.3]}
55. f6+ {[%clk 0:00:03.1]} 55... Kf7 {[%clk 0:00:12.4]} 56. Kh6 {[%clk 0:00:04]}
56... Kxf6 {[%clk 0:00:12.6]} 57. h5 {[%clk 0:00:04.9]} 57... Kf7 {[%clk
0:00:12.9]} 58. Kxh7 {[%clk 0:00:04.7]} 58... Kf8+ {[%clk 0:00:13.3]} 59. Kh8
{[%clk 0:00:04.5]} 59... Ra6 {[%clk 0:00:10.5]} 60. Kh7 {[%clk 0:00:04.2]} 60...
Kf7 {[%clk 0:00:10.7]} 61. h6 {[%clk 0:00:03.2]} 61... Rb6 {[%clk 0:00:11]} 62.
Kh8 {[%clk 0:00:02.4]} 62... Rxh6# {[%clk 0:00:11.6]} 0-1